[Event "NOR-ch Various 2019"]
[Site "Larvik"]
[Date "2019.07.08"]
[Round "3.32"]
[White "Brodtkorb, Lars Johan"]
[Black "Aulin-Jansson, Joran"]
[Result "1-0"]
[ECO "E80"]
[WhiteElo "2077"]
[BlackElo "2223"]
[Annotator "NA"]
[PlyCount "161"]
[EventDate "2019.07.06"]
[EventType "swiss"]
[EventCountry "NOR"]
[SourceTitle "playchess.com"]
[Source "ChessBase"]
[SourceQuality "1"]
[TimeControl "40/5400+30:1800+30"]

1. d4 {[%emt 0:00:00]} Nf6 {[%emt 0:13:39]} 2. c4 {[%emt 0:00:00]} d6 {[%emt 0:01:31]} 3. Nc3 {[%emt 0:01:56]} g6 {[%emt 0:00:18]} 4. e4 {[%emt 0:00:16]} Bg7 {[%emt 0:00:36]} 5. f3 {[%emt 0:02:57]} e5 {[%emt 0:03:15]} 6. d5 {[%emt 0:03:08]} Nfd7 {[%emt 0:10:02]} 7. Nh3 {[%emt 0:02:27]} Bh6 {[%emt 0:00:29]} 8. Bxh6 {[%emt 0:00:11]} Qh4+ {[%emt 0:00:05]} 9. Nf2 {[%emt 0:05:53]} Qxh6 {[%emt 0:06:44]} 10. Qd2 {[%emt 0:00:22]} Qxd2+ {[%emt 0:00:28]} 11. Kxd2 {[%emt 0:00:03]} a5 {[%emt 0:00:16]} 12. Be2 {[%emt 0:02:56]} Nc5 {[%emt 0:02:17]} 13. Rhb1 {[%emt 0:06:35]} a4 {[%emt 0:03:43]} 14. Bd1 {[%emt 0:01:03]} f5 {[%emt 0:03:17]} 15. b4 {[%emt 0:00:55]} axb3 {[%emt 0:00:07]} 16. axb3 {[%emt 0:00:10]} Rxa1 {[%emt 0:00:06]} 17. Rxa1 {[%emt 0:00:08]} Nba6 {[%emt 0:00:04]} 18. Na2 {[%emt 0:10:06]} fxe4 {[%emt 0:06:29]} 19. fxe4 {[%emt 0:00:09]} Rf8 {[%emt 0:04:19]} 20. Ke3 {[%emt 0:00:08]} Ke7 {[%emt 0:00:48]} 21. b4 {[%emt 0:04:38]} Nd7 {[%emt 0:02:46]} 22. Be2 {[%emt 0:01:40]} b6 {[%emt 0:08:17]} 23. Nd3 {[%emt 0:03:31]} Nf6 {[%emt 0:01:45]} 24. Nc3 {[%emt 0:00:29]} h5 {[%emt 0:00:49]} 25. Nb1 {[%emt 0:13:19]} g5 {[%emt 0:06:08]} 26. Nd2 {[%emt 0:00:18]} g4 {[%emt 0:00:11]} 27. Bd1 {[%emt 0:17:27]} h4 {[%emt 0:01:03]} 28. Ba4 {[%emt 0:01:28]} Nh5 {[%emt 0:02:10]} 29. Bb5 {[%emt 0:01:01]} Nb8 {[%emt 0:00:08]} 30. c5 {[%emt 0:02:37]} bxc5 {[%emt 0:03:09]} 31. bxc5 {[%emt 0:00:08]} Nf4 {[%emt 0:00:04]} 32. cxd6+ {[%emt 0:04:37]} cxd6 {[%emt 0:00:40]} 33. Ne1 {[%emt 0:03:18]} Bd7 {[%emt 0:01:01]} 34. Ra7 {[%emt 0:01:51]} h3 {[%emt 0:01:47]} 35. g3 {[%emt 0:03:22]} Nh5 {[%emt 0:05:41]} 36. Nf1 {[%emt 0:01:45]} Rc8 {[%emt 0:01:38]} 37. Be2 {[%emt 0:01:06]} Nf6 {[%emt 0:00:50]} 38. Nd3 {[%emt 0:01:20]} Rc3 {[%emt 0:01:47]} 39. Nd2 {[%emt 0:01:24]} Kd8 {[%emt 0:00:23]} 40. Nb1 {[%emt 0:00:53]} Rc4 {[%emt 0:03:37]} 41. Nd2 {[%emt 0:07:53]} Ra4 {[%emt 0:33:54]} 42. Rxa4 {[%emt 0:00:00]} Bxa4 {[%emt 0:00:00]} 43. Nf2 {[%emt 0:00:00]} Bd7 {[%emt 0:00:00]} 44. Nf1 {[%emt 0:00:24]} Kc7 {[%emt 0:00:00]} 45. Kd2 {[%emt 0:00:54]} Kb6 {[%emt 0:00:00]} 46. Ne3 {[%emt 0:00:43]} Kc5 {[%emt 0:00:00]} 47. Kc3 {[%emt 0:01:20]} Be8 {[%emt 0:00:00]} 48. Bxg4 {[%emt 0:05:42]} Na6 {[%emt 0:00:00]} 49. Bxh3 {[%emt 0:00:35]} Nb4 {[%emt 0:00:00]} 50. Bf5 {[%emt 0:02:01]} Na2+ {[%emt 0:00:00]} 51. Kd2 {[%emt 0:00:53]} Kd4 {[%emt 0:00:00]} 52. g4 {[%emt 0:00:43]} Nc3 {[%emt 0:00:00]} 53. Nc2+ {[%emt 0:00:32]} Kc4 {[%emt 0:00:00]} 54. h4 {[%emt 0:01:04]} Nb1+ {[%emt 0:00:00]} 55. Ke3 {[%emt 0:00:17]} Kc3 {[%emt 0:00:00]} 56. Ne1 {[%emt 0:00:21]} Na3 {[%emt 0:00:00]} 57. Nd1+ {[%emt 0:02:23]} Kb3 {[%emt 0:00:00]} 58. h5 {[%emt 0:03:47]} Nc4+ {[%emt 0:00:00]} 59. Ke2 {[%emt 0:00:33]} Bxh5 {[%emt 0:00:00]} 60. gxh5 {[%emt 0:00:10]} Nxh5 {[%emt 0:00:00]} 61. Ng2 {[%emt 0:03:37]} Nb6 {[%emt 0:00:00]} 62. Nde3 {[%emt 0:01:15]} Kc3 {[%emt 0:00:00]} 63. Bg6 {[%emt 0:02:54]} Nf6 {[%emt 0:01:50]} 64. Nh4 {[%emt 0:00:21]} Nbd7 {[%emt 0:01:44]} 65. Nf3 {[%emt 0:00:51]} Nc5 {[%emt 0:00:23]} 66. Ng5 {[%emt 0:00:28]} Nd3 {[%emt 0:01:22]} 67. Ne6 {[%emt 0:00:19]} Nc1+ {[%emt 0:01:50]} 68. Kf3 {[%emt 0:00:34]} Nb3 {[%emt 0:00:08]} 69. Nd1+ {[%emt 0:03:52]} Kc4 {[%emt 0:01:03]} 70. Nf2 {[%emt 0:00:32]} Kc3 {[%emt 0:01:46]} 71. Ke3 {[%emt 0:00:09]} Na5 {[%emt 0:00:32]} 72. Ke2 {[%emt 0:01:03]} Nc4 {[%emt 0:01:00]} 73. Nd1+ {[%emt 0:00:09]} Kb4 {[%emt 0:00:39]} 74. Kd3 {[%emt 0:00:15]} Kb3 {[%emt 0:00:43]} 75. Nc7 {[%emt 0:00:45]} Kb4 {[%emt 0:01:29]} 76. Ne3 {[%emt 0:00:43]} Nxe3 {[%emt 0:04:20]} 77. Kxe3 {[%emt 0:00:06]} Kc5 {[%emt 0:00:01]} 78. Ne8 {[%emt 0:01:14]} Ng4+ {[%emt 0:00:59]} 79. Kf3 {[%emt 0:00:51]} Nh2+ {[%emt 0:00:06]} 80. Ke2 {[%emt 0:00:12]} Ng4 {[%emt 0:00:08]} 81. Bf5 {[%emt 0:00:14]} 1-0

[Event "NOR-ch Various 2019"]
[Site "Larvik"]
[Date "2019.07.08"]
[Round "3.33"]
[White "Thanke, Bror"]
[Black "Gulbrandsen, Tor"]
[Result "1/2-1/2"]
[ECO "C10"]
[WhiteElo "2191"]
[BlackElo "2120"]
[Annotator "NA"]
[PlyCount "29"]
[EventDate "2019.07.06"]
[EventType "swiss"]
[EventCountry "NOR"]
[SourceTitle "playchess.com"]
[Source "ChessBase"]
[SourceQuality "1"]
[TimeControl "40/5400+30:1800+30"]

1. e4 {[%emt 0:07:36]} e6 {[%emt 0:08:13]} 2. d4 {[%emt 0:00:18]} d5 {[%emt 0:00:11]} 3. Nc3 {[%emt 0:00:28]} dxe4 {[%emt 0:00:51]} 4. Nxe4 {[%emt 0:00:09]} Nd7 {[%emt 0:00:30]} 5. Nf3 {[%emt 0:00:39]} Ngf6 {[%emt 0:00:30]} 6. Bd3 {[%emt 0:00:20]} Be7 {[%emt 0:00:44]} 7. O-O {[%emt 0:00:20]} O-O {[%emt 0:00:26]} 8. Qe2 {[%emt 0:01:17]} b6 {[%emt 0:01:29]} 9. c3 {[%emt 0:03:20]} Bb7 {[%emt 0:00:34]} 10. h3 {[%emt 0:01:34]} Nxe4 {[%emt 0:01:47]} 11. Bxe4 {[%emt 0:00:06]} Bxe4 {[%emt 0:00:10]} 12. Qxe4 {[%emt 0:00:03]} h6 {[%emt 0:01:46]} 13. Bf4 {[%emt 0:01:07]} Bd6 {[%emt 0:00:37]} 14. Bxd6 {[%emt 0:01:19]} cxd6 {[%emt 0:01:41]} 15. a4 {[%emt 0:00:43]} 1/2-1/2

[Event "NOR-ch Various 2019"]
[Site "Larvik"]
[Date "2019.07.08"]
[Round "3.34"]
[White "Sidali, Elias Hulleberg"]
[Black "Hole, Oystein"]
[Result "0-1"]
[ECO "B18"]
[WhiteElo "2041"]
[BlackElo "2293"]
[Annotator "NA"]
[PlyCount "62"]
[EventDate "2019.07.06"]
[EventType "swiss"]
[EventCountry "NOR"]
[SourceTitle "playchess.com"]
[Source "ChessBase"]
[SourceQuality "1"]
[TimeControl "40/5400+30:1800+30"]

1. e4 {[%emt 0:00:00]} c6 {[%emt 0:00:00]} 2. d4 {[%emt 0:00:00]} d5 {[%emt 0:00:00]} 3. Nc3 {[%emt 0:00:00]} dxe4 {[%emt 0:00:00]} 4. Nxe4 {[%emt 0:00:00]} Bf5 {[%emt 0:00:05]} 5. Nc5 {[%emt 0:00:00]} b6 {[%emt 0:00:09]} 6. Nb3 {[%emt 0:00:00]} e6 {[%emt 0:00:44]} 7. Nf3 {[%emt 0:00:00]} a5 {[%emt 0:00:51]} 8. a4 {[%emt 0:02:32]} Nf6 {[%emt 0:00:25]} 9. g3 {[%emt 0:00:46]} Bd6 {[%emt 0:01:53]} 10. Bg2 {[%emt 0:00:31]} h6 {[%emt 0:09:07]} 11. O-O {[%emt 0:00:29]} O-O {[%emt 0:00:21]} 12. Nbd2 {[%emt 0:00:53]} Nd5 {[%emt 0:02:42]} 13. Re1 {[%emt 0:15:23]} Nd7 {[%emt 0:06:43]} 14. Ne4 {[%emt 0:13:46]} Bc7 {[%emt 0:05:05]} 15. c4 {[%emt 0:19:11]} Nb4 {[%emt 0:05:14]} 16. Bd2 {[%emt 0:00:02]} Qe7 {[%emt 0:00:45]} 17. Bc3 {[%emt 0:02:08]} Rac8 {[%emt 0:05:16]} 18. Nh4 {[%emt 0:13:59]} Bh7 {[%emt 0:02:59]} 19. f4 {[%emt 0:03:01]} Bxf4 {[%emt 0:05:01]} 20. d5 {[%emt 0:07:14]} cxd5 {[%emt 0:08:46]} 21. cxd5 {[%emt 0:05:31]} Nxd5 {[%emt 0:06:34]} 22. Bd4 {[%emt 0:05:45]} Be5 {[%emt 0:07:07]} 23. Bxe5 {[%emt 0:00:38]} Nxe5 {[%emt 0:00:02]} 24. Nf2 {[%emt 0:00:07]} Qd6 {[%emt 0:00:08]} 25. Qh5 {[%emt 0:05:37]} Nd7 {[%emt 0:04:05]} 26. Rad1 {[%emt 0:00:54]} N7f6 {[%emt 0:00:16]} 27. Qe2 {[%emt 0:01:00]} Qb4 {[%emt 0:04:15]} 28. Qe5 {[%emt 0:01:46]} Rc2 {[%emt 0:02:35]} 29. Ne4 {[%emt 0:01:27]} Nxe4 {[%emt 0:00:54]} 30. Bxe4 {[%emt 0:00:02]} Bxe4 {[%emt 0:00:11]} 31. Rxe4 {[%emt 0:00:20]} Qxb2 {[%emt 0:00:13]} 0-1

[Event "NOR-ch Various 2019"]
[Site "Larvik"]
[Date "2019.07.08"]
[Round "3.35"]
[White "Moen, Ole Christian"]
[Black "Grover, Sigurd Loe"]
[Result "1-0"]
[ECO "C01"]
[WhiteElo "2234"]
[BlackElo "2052"]
[Annotator "NA RC"]
[PlyCount "47"]
[EventDate "2019.07.06"]
[EventType "swiss"]
[EventCountry "NOR"]
[SourceTitle "playchess.com"]
[Source "ChessBase"]
[SourceQuality "1"]
[TimeControl "40/5400+30:1800+30"]

1. e4 {[%emt 0:00:00]} e6 {[%emt 0:00:00]} 2. d4 {[%emt 0:00:00]} d5 {[%emt 0:00:00]} 3. Nc3 {[%emt 0:00:06]} Nf6 {[%emt 0:00:00]} 4. Bd3 {[%emt 0:01:19]} c5 {[%emt 0:00:03]} 5. exd5 {[%emt 0:02:38]} exd5 {[%emt 0:01:31]} 6. Bg5 {[%emt 0:05:49]} c4 {[%emt 0:08:35]} 7. Be2 {[%emt 0:00:16]} Bb4 {[%emt 0:01:15]} 8. Bf3 {[%emt 0:00:07]} Bxc3+ {[%emt 0:06:43]} 9. bxc3 {[%emt 0:00:50]} Be6 {[%emt 0:00:05]} 10. Ne2 {[%emt 0:00:33]} h6 {[%emt 0:00:48]} 11. Bxf6 {[%emt 0:03:09]} Qxf6 {[%emt 0:00:14]} 12. Qb1 {[%emt 0:01:15]} Qe7 {[%emt 0:03:54]} 13. O-O {[%emt 0:05:04]} g5 {[%emt 0:02:26]} 14. Re1 {[%emt 0:05:14]} g4 {[%emt 0:06:54]} 15. Bxd5 {[%emt 0:00:07]} Bxd5 {[%emt 0:00:04]} 16. Nf4 {[%emt 0:00:08]} Be6 {[%emt 0:00:03]} 17. d5 {[%emt 0:00:14]} O-O {[%emt 0:04:59]} 18. dxe6 {[%emt 0:00:31]} Nc6 {[%emt 0:04:03]} 19. Nd5 {[%emt 0:01:22]} Qg5 {[%emt 0:03:45]} 20. e7 {[%emt 0:01:49]} Rfc8 {[%emt 0:01:00]} 21. Qd1 {[%emt 0:00:21]} Ne5 {[%emt 0:01:59]} 22. Kh1 {[%emt 0:01:48]} h5 {[%emt 0:01:16]} 23. Qd4 {[%emt 0:05:31]} Nc6 {[%emt 0:04:49]} 24. Nf6+ {[%emt 0:04:27]} 1-0

[Event "NOR-ch Various 2019"]
[Site "Larvik"]
[Date "2019.07.08"]
[Round "3.36"]
[White "Sorgjerd, Jan"]
[Black "Hagesather, Ellen"]
[Result "1-0"]
[ECO "A85"]
[WhiteElo "2033"]
[BlackElo "2193"]
[Annotator "NA"]
[PlyCount "151"]
[EventDate "2019.07.06"]
[EventType "swiss"]
[EventCountry "NOR"]
[SourceTitle "playchess.com"]
[Source "ChessBase"]
[SourceQuality "1"]
[TimeControl "40/5400+30:1800+30"]

1. d4 {[%emt 0:00:00]} d5 {[%emt 0:00:00]} 2. Nf3 {[%emt 0:00:21]} e6 {[%emt 0:00:00]} 3. e3 {[%emt 0:00:30]} f5 {[%emt 0:00:37]} 4. c4 {[%emt 0:00:36]} c6 {[%emt 0:00:13]} 5. Nc3 {[%emt 0:00:38]} Nf6 {[%emt 0:00:45]} 6. Be2 {[%emt 0:00:38]} Bd6 {[%emt 0:00:27]} 7. O-O {[%emt 0:00:58]} O-O {[%emt 0:02:18]} 8. Ne1 {[%emt 0:10:04]} b6 {[%emt 0:02:05]} 9. f4 {[%emt 0:01:35]} Bb7 {[%emt 0:00:44]} 10. b3 {[%emt 0:07:46]} Nbd7 {[%emt 0:02:23]} 11. Nd3 {[%emt 0:02:25]} Qe7 {[%emt 0:01:02]} 12. Ne5 {[%emt 0:02:25]} Rac8 {[%emt 0:03:46]} 13. Bb2 {[%emt 0:01:00]} a6 {[%emt 0:03:14]} 14. Rc1 {[%emt 0:02:55]} Bb4 {[%emt 0:07:05]} 15. Nd3 {[%emt 0:09:38]} Bd6 {[%emt 0:06:37]} 16. Ne5 {[%emt 0:00:14]} dxc4 {[%emt 0:01:39]} 17. Nxc4 {[%emt 0:03:00]} Bc7 {[%emt 0:05:23]} 18. Bf3 {[%emt 0:01:03]} b5 {[%emt 0:01:35]} 19. Ne5 {[%emt 0:01:35]} Bb6 {[%emt 0:06:33]} 20. Kh1 {[%emt 0:04:37]} Nb8 {[%emt 0:03:06]} 21. Qe2 {[%emt 0:13:53]} c5 {[%emt 0:04:40]} 22. dxc5 {[%emt 0:02:04]} Bxc5 {[%emt 0:01:41]} 23. Nd3 {[%emt 0:07:10]} Ba7 {[%emt 0:04:40]} 24. a3 {[%emt 0:06:51]} Bxf3 {[%emt 0:01:51]} 25. gxf3 {[%emt 0:00:15]} Nbd7 {[%emt 0:05:36]} 26. Rfd1 {[%emt 0:06:55]} Nh5 {[%emt 0:04:12]} 27. Nb1 {[%emt 0:02:23]} Qh4 {[%emt 0:01:23]} 28. Rg1 {[%emt 0:02:13]} Rxc1 {[%emt 0:00:12]} 29. Nxc1 {[%emt 0:00:49]} Ndf6 {[%emt 0:01:17]} 30. Nc3 {[%emt 0:03:03]} Re8 {[%emt 0:05:57]} 31. Nd3 {[%emt 0:00:24]} Nd7 {[%emt 0:00:18]} 32. Nd1 {[%emt 0:01:18]} Qe7 {[%emt 0:01:57]} 33. Qc2 {[%emt 0:00:59]} Nb6 {[%emt 0:02:33]} 34. Bd4 {[%emt 0:02:20]} Nd5 {[%emt 0:02:29]} 35. Nc5 {[%emt 0:01:53]} Rc8 {[%emt 0:01:58]} 36. b4 {[%emt 0:00:05]} a5 {[%emt 0:01:18]} 37. Qb2 {[%emt 0:00:43]} axb4 {[%emt 0:00:32]} 38. axb4 {[%emt 0:00:26]} Nxb4 {[%emt 0:02:33]} 39. Nxe6 {[%emt 0:00:10]} Qxe6 {[%emt 0:04:07]} 40. Bxa7 {[%emt 0:03:27]} Qd5 {[%emt 0:04:48]} 41. Qg2 {[%emt 0:02:26]} Nc6 {[%emt 0:03:56]} 42. e4 {[%emt 0:02:29]} Qb3 {[%emt 0:03:28]} 43. Be3 {[%emt 0:00:40]} Rd8 {[%emt 0:02:40]} 44. Qb2 {[%emt 0:05:32]} Qc4 {[%emt 0:03:58]} 45. Nf2 {[%emt 0:01:33]} fxe4 {[%emt 0:01:26]} 46. fxe4 {[%emt 0:00:34]} b4 {[%emt 0:02:27]} 47. Rc1 {[%emt 0:03:57]} Qe6 {[%emt 0:00:38]} 48. f5 {[%emt 0:01:23]} Qe8 {[%emt 0:00:20]} 49. Rg1 {[%emt 0:03:21]} Ne5 {[%emt 0:05:42]} 50. Qxb4 {[%emt 0:01:32]} Nf3 {[%emt 0:00:47]} 51. Qb3+ {[%emt 0:02:34]} Kh8 {[%emt 0:00:42]} 52. Rd1 {[%emt 0:00:27]} Rb8 {[%emt 0:03:01]} 53. Qc3 {[%emt 0:04:14]} Rc8 {[%emt 0:01:45]} 54. Qb2 {[%emt 0:00:20]} Nf6 {[%emt 0:03:30]} 55. Qe2 {[%emt 0:01:56]} Qh5 {[%emt 0:02:15]} 56. Bf4 {[%emt 0:01:26]} Ng4 {[%emt 0:02:53]} 57. Nxg4 {[%emt 0:01:32]} Qxg4 {[%emt 0:00:05]} 58. Bg3 {[%emt 0:01:47]} h5 {[%emt 0:02:03]} 59. Rf1 {[%emt 0:01:01]} Rc3 {[%emt 0:01:49]} 60. e5 {[%emt 0:00:58]} Qxf5 {[%emt 0:01:16]} 61. e6 {[%emt 0:00:26]} Qd5 {[%emt 0:00:11]} 62. Qg2 {[%emt 0:00:07]} Re3 {[%emt 0:00:53]} 63. e7 {[%emt 0:00:11]} h4 {[%emt 0:00:08]} 64. Rxf3 {[%emt 0:00:36]} Qd1+ {[%emt 0:01:41]} 65. Rf1 {[%emt 0:00:27]} Qd7 {[%emt 0:00:09]} 66. Bxh4 {[%emt 0:00:40]} Kh7 {[%emt 0:00:04]} 67. Bg5 {[%emt 0:00:14]} Re5 {[%emt 0:00:58]} 68. h4 {[%emt 0:01:04]} Qd3 {[%emt 0:00:21]} 69. Qf3 {[%emt 0:00:19]} Qg6 {[%emt 0:00:20]} 70. Rg1 {[%emt 0:00:16]} Qe8 {[%emt 0:00:28]} 71. Rd1 {[%emt 0:00:40]} Qg6 {[%emt 0:00:59]} 72. Qd3 {[%emt 0:00:24]} Re4 {[%emt 0:00:25]} 73. Qd5 {[%emt 0:00:58]} Re2 {[%emt 0:00:32]} 74. Rf1 {[%emt 0:00:10]} Kh8 {[%emt 0:00:54]} 75. Rf8+ {[%emt 0:00:09]} Kh7 {[%emt 0:00:05]} 76. Qg8# {[%emt 0:00:01]} 1-0

[Event "NOR-ch Various 2019"]
[Site "Larvik"]
[Date "2019.07.08"]
[Round "3.37"]
[White "Schreiber, Kevin"]
[Black "Martinsen, Stig K"]
[Result "0-1"]
[ECO "A21"]
[WhiteElo "2030"]
[BlackElo "2177"]
[Annotator "NA"]
[PlyCount "114"]
[EventDate "2019.07.06"]
[EventType "swiss"]
[EventCountry "NOR"]
[SourceTitle "playchess.com"]
[Source "ChessBase"]
[SourceQuality "1"]
[TimeControl "40/5400+30:1800+30"]

1. c4 {[%emt 0:00:00]} e5 {[%emt 0:02:14]} 2. g3 {[%emt 0:00:00]} d6 {[%emt 0:00:11]} 3. Bg2 {[%emt 0:00:01]} Be7 {[%emt 0:01:25]} 4. Nc3 {[%emt 0:00:32]} f5 {[%emt 0:00:27]} 5. d3 {[%emt 0:00:32]} Nf6 {[%emt 0:01:01]} 6. e3 {[%emt 0:00:21]} O-O {[%emt 0:00:48]} 7. Nge2 {[%emt 0:00:18]} a5 {[%emt 0:09:48]} 8. O-O {[%emt 0:00:54]} Qe8 {[%emt 0:03:47]} 9. Nd5 {[%emt 0:07:03]} Bd8 {[%emt 0:07:32]} 10. b3 {[%emt 0:05:37]} c6 {[%emt 0:11:51]} 11. Nxf6+ {[%emt 0:02:09]} Rxf6 {[%emt 0:04:36]} 12. Bb2 {[%emt 0:04:45]} Rh6 {[%emt 0:09:58]} 13. Qd2 {[%emt 0:08:17]} Qh5 {[%emt 0:05:53]} 14. f4 {[%emt 0:02:07]} Qxh2+ {[%emt 0:14:56]} 15. Kf2 {[%emt 0:00:28]} Qh5 {[%emt 0:00:44]} 16. fxe5 {[%emt 0:04:00]} dxe5 {[%emt 0:01:06]} 17. Bxe5 {[%emt 0:03:27]} Qe8 {[%emt 0:02:46]} 18. Bd4 {[%emt 0:08:19]} Nd7 {[%emt 0:02:30]} 19. Rh1 {[%emt 0:05:04]} Rxh1 {[%emt 0:01:37]} 20. Rxh1 {[%emt 0:00:06]} Bf6 {[%emt 0:02:23]} 21. Nf4 {[%emt 0:09:33]} Qe7 {[%emt 0:04:48]} 22. Qc3 {[%emt 0:04:39]} Ne5 {[%emt 0:04:52]} 23. Bxe5 {[%emt 0:05:00]} Bxe5 {[%emt 0:00:38]} 24. d4 {[%emt 0:00:08]} Bf6 {[%emt 0:00:19]} 25. c5 {[%emt 0:02:39]} g6 {[%emt 0:01:14]} 26. Qc4+ {[%emt 0:01:00]} Kg7 {[%emt 0:00:09]} 27. d5 {[%emt 0:02:27]} cxd5 {[%emt 0:00:24]} 28. Nxd5 {[%emt 0:00:36]} Qe5 {[%emt 0:01:41]} 29. Nb6 {[%emt 0:06:22]} Be6 {[%emt 0:03:21]} 30. Bd5 {[%emt 0:06:43]} Re8 {[%emt 0:00:51]} 31. Bxe6 {[%emt 0:01:56]} Rxe6 {[%emt 0:00:28]} 32. Re1 {[%emt 0:02:50]} Bg5 {[%emt 0:01:03]} 33. Nd5 {[%emt 0:01:00]} h5 {[%emt 0:00:30]} 34. Nf4 {[%emt 0:01:44]} Re7 {[%emt 0:00:35]} 35. Re2 {[%emt 0:01:42]} h4 {[%emt 0:00:29]} 36. gxh4 {[%emt 0:04:27]} Bxh4+ {[%emt 0:00:03]} 37. Kf1 {[%emt 0:00:47]} g5 {[%emt 0:00:34]} 38. Nd5 {[%emt 0:00:22]} Rd7 {[%emt 0:00:53]} 39. Rd2 {[%emt 0:00:54]} g4 {[%emt 0:00:29]} 40. Qd4 {[%emt 0:00:38]} Bf6 {[%emt 0:00:33]} 41. Qxe5 {[%emt 0:01:18]} Bxe5 {[%emt 0:02:35]} 42. a3 {[%emt 0:01:19]} Kf7 {[%emt 0:05:15]} 43. Ke2 {[%emt 0:01:38]} Ke6 {[%emt 0:01:01]} 44. Nb6 {[%emt 0:06:33]} Rxd2+ {[%emt 0:08:21]} 45. Kxd2 {[%emt 0:00:13]} Bc7 {[%emt 0:00:47]} 46. Na4 {[%emt 0:02:16]} Kd5 {[%emt 0:02:06]} 47. Kd3 {[%emt 0:03:36]} g3 {[%emt 0:08:41]} 48. Ke2 {[%emt 0:00:34]} f4 {[%emt 0:01:08]} 49. exf4 {[%emt 0:02:39]} Bxf4 {[%emt 0:00:19]} 50. Kf3 {[%emt 0:09:34]} Be5 {[%emt 0:01:37]} 51. Nb6+ {[%emt 0:01:58]} Kxc5 {[%emt 0:00:33]} 52. Nc4 {[%emt 0:01:11]} Bc7 {[%emt 0:00:42]} 53. Nd2 {[%emt 0:01:12]} Kd4 {[%emt 0:01:03]} 54. a4 {[%emt 0:01:41]} Kc3 {[%emt 0:02:23]} 55. Ke2 {[%emt 0:00:10]} g2 {[%emt 0:00:41]} 56. Ne4+ {[%emt 0:00:56]} Kd4 {[%emt 0:00:39]} 57. Nd2 {[%emt 0:00:03]} Bh2 {[%emt 0:00:27]} 0-1

[Event "NOR-ch Various 2019"]
[Site "Larvik"]
[Date "2019.07.08"]
[Round "3.38"]
[White "Fossan, Aleksander"]
[Black "Fossan, Andreas"]
[Result "1-0"]
[ECO "C01"]
[WhiteElo "2155"]
[BlackElo "2023"]
[Annotator "NA"]
[PlyCount "74"]
[EventDate "2019.07.06"]
[EventType "swiss"]
[EventCountry "NOR"]
[SourceTitle "playchess.com"]
[Source "ChessBase"]
[SourceQuality "1"]
[TimeControl "40/5400+30:1800+30"]

1. e4 {[%emt 0:00:00]} e6 {[%emt 0:00:09]} 2. d4 {[%emt 0:00:00]} d5 {[%emt 0:00:25]} 3. exd5 {[%emt 0:00:35]} exd5 {[%emt 0:00:11]} 4. Nf3 {[%emt 0:00:27]} Nf6 {[%emt 0:04:07]} 5. Bg5 {[%emt 0:00:29]} Be7 {[%emt 0:00:46]} 6. Bd3 {[%emt 0:00:17]} O-O {[%emt 0:01:50]} 7. O-O {[%emt 0:00:18]} Bg4 {[%emt 0:11:19]} 8. Nbd2 {[%emt 0:00:19]} Nbd7 {[%emt 0:01:18]} 9. c3 {[%emt 0:00:45]} c6 {[%emt 0:10:00]} 10. Re1 {[%emt 0:01:24]} Re8 {[%emt 0:03:43]} 11. Qc2 {[%emt 0:00:57]} h6 {[%emt 0:03:16]} 12. Bf4 {[%emt 0:01:10]} Nh5 {[%emt 0:14:49]} 13. Be5 {[%emt 0:04:30]} Bf6 {[%emt 0:05:05]} 14. Bh7+ {[%emt 0:06:34]} Kh8 {[%emt 0:05:18]} 15. Bf5 {[%emt 0:00:02]} Bxf5 {[%emt 0:05:59]} 16. Qxf5 {[%emt 0:00:13]} g6 {[%emt 0:02:46]} 17. Qh3 {[%emt 0:08:11]} Bxe5 {[%emt 0:05:46]} 18. dxe5 {[%emt 0:00:34]} Kh7 {[%emt 0:03:10]} 19. g3 {[%emt 0:04:55]} Nc5 {[%emt 0:01:33]} 20. Nd4 {[%emt 0:12:13]} Ng7 {[%emt 0:05:42]} 21. f4 {[%emt 0:01:55]} Qc8 {[%emt 0:04:09]} 22. Qh4 {[%emt 0:03:25]} Qd8 {[%emt 0:01:18]} 23. Qh3 {[%emt 0:02:20]} Nge6 {[%emt 0:02:57]} 24. N2f3 {[%emt 0:05:46]} Nxd4 {[%emt 0:01:32]} 25. cxd4 {[%emt 0:12:03]} Ne4 {[%emt 0:00:27]} 26. Rad1 {[%emt 0:02:07]} Kg7 {[%emt 0:01:28]} 27. f5 {[%emt 0:01:00]} gxf5 {[%emt 0:02:36]} 28. Qxf5 {[%emt 0:01:00]} Qc8 {[%emt 0:00:41]} 29. Qh5 {[%emt 0:00:56]} c5 {[%emt 0:00:42]} 30. Nh4 {[%emt 0:01:21]} Qe6 {[%emt 0:00:33]} 31. Rf1 {[%emt 0:01:45]} Rf8 {[%emt 0:01:08]} 32. Rf6 {[%emt 0:02:54]} Nxf6 {[%emt 0:00:30]} 33. Nf5+ {[%emt 0:00:03]} Kg8 {[%emt 0:00:44]} 34. Nxh6+ {[%emt 0:00:06]} Kg7 {[%emt 0:00:27]} 35. Nf5+ {[%emt 0:00:20]} Kg8 {[%emt 0:00:07]} 36. Nh6+ {[%emt 0:00:35]} Kh7 {[%emt 0:00:06]} 37. exf6 {[%emt 0:00:13]} Qe3+ {[%emt 0:00:03]} 1-0